[Event "Late-Titled-Tuesday-Blitz-March-19-2024"]
[Site "Chess.com"]
[Date "2024.03.19"]
[Round "1"]
[White "Koalaskakistis"]
[Black "Fandorine"]
[Result "0-1"]
[WhiteElo "2527"]
[BlackElo "2937"]
[TimeControl "180+1"]
[EndTime "14:07:05 PDT"]
[Termination "Fandorine won by resignation"]

1. d4 {[%clk 0:02:59.2]} 1... Nf6 {[%clk 0:02:59.5]} 2. Nc3 {[%clk 0:02:56.8]}
2... d5 {[%clk 0:02:58.2]} 3. Bf4 {[%clk 0:02:56.2]} 3... g6 {[%clk 0:02:58.3]}
4. e3 {[%clk 0:02:52.7]} 4... c6 {[%clk 0:02:55]} 5. h4 {[%clk 0:02:52.2]} 5...
h5 {[%clk 0:02:53.8]} 6. Nf3 {[%clk 0:02:50.4]} 6... Bg4 {[%clk 0:02:54.3]} 7.
Be2 {[%clk 0:02:47.5]} 7... Bxf3 {[%clk 0:02:51.7]} 8. Bxf3 {[%clk 0:02:46.5]}
8... Nbd7 {[%clk 0:02:52.4]} 9. O-O {[%clk 0:02:42.2]} 9... Bg7 {[%clk
0:02:49.1]} 10. Re1 {[%clk 0:02:29.5]} 10... O-O {[%clk 0:02:41.7]} 11. e4
{[%clk 0:02:23.5]} 11... dxe4 {[%clk 0:02:41.4]} 12. Nxe4 {[%clk 0:02:22]} 12...
Nxe4 {[%clk 0:02:37.2]} 13. Bxe4 {[%clk 0:02:22.9]} 13... Nf6 {[%clk 0:02:33.5]}
14. Bf3 {[%clk 0:02:15.7]} 14... e6 {[%clk 0:02:26.8]} 15. c3 {[%clk 0:02:15]}
15... Re8 {[%clk 0:02:25.8]} 16. Bg5 {[%clk 0:02:07.1]} 16... Qc7 {[%clk
0:02:22.5]} 17. Qd2 {[%clk 0:02:01.1]} 17... Nd5 {[%clk 0:02:19.3]} 18. Bxd5
{[%clk 0:01:56.2]} 18... exd5 {[%clk 0:02:16.2]} 19. Bf4 {[%clk 0:01:52.2]}
19... Qd7 {[%clk 0:02:11.1]} 20. Rxe8+ {[%clk 0:01:38.9]} 20... Rxe8 {[%clk
0:02:10.2]} 21. Re1 {[%clk 0:01:39.3]} 21... Re4 {[%clk 0:02:05.3]} 22. g3
{[%clk 0:01:24.9]} 22... Qe6 {[%clk 0:01:42.3]} 23. Rxe4 {[%clk 0:01:14.5]}
23... dxe4 {[%clk 0:01:42.4]} 24. Qe3 {[%clk 0:01:10.4]} 24... f5 {[%clk
0:01:29.5]} 25. b3 {[%clk 0:01:05.2]} 25... b5 {[%clk 0:01:22.2]} 26. Kg2 {[%clk
0:00:49.1]} 26... Qd5 {[%clk 0:01:15.6]} 27. f3 {[%clk 0:00:42.9]} 27... a5
{[%clk 0:00:55.9]} 28. fxe4 {[%clk 0:00:25]} 28... fxe4 {[%clk 0:00:55.6]} 29.
Kf2 {[%clk 0:00:18.6]} 29... a4 {[%clk 0:00:42.8]} 30. c4 {[%clk 0:00:13.2]}
30... bxc4 {[%clk 0:00:37.8]} 31. bxc4 {[%clk 0:00:11]} 31... Qxd4 {[%clk
0:00:36.9]} 32. Qxd4 {[%clk 0:00:11]} 32... Bxd4+ {[%clk 0:00:37.8]} 33. Ke2
{[%clk 0:00:11.6]} 33... Kf7 {[%clk 0:00:38.4]} 34. Be3 {[%clk 0:00:11.4]} 34...
Be5 {[%clk 0:00:35.6]} 35. Bf4 {[%clk 0:00:11.6]} 35... Bxf4 {[%clk 0:00:31.1]}
36. gxf4 {[%clk 0:00:12.5]} 36... Ke6 {[%clk 0:00:31.3]} 37. Ke3 {[%clk
0:00:13.4]} 37... Kf5 {[%clk 0:00:31.7]} 38. a3 {[%clk 0:00:13.3]} 38... c5
{[%clk 0:00:31.6]} 39. Kf2 {[%clk 0:00:13]} 39... Kxf4 {[%clk 0:00:32.1]} 40.
Ke2 {[%clk 0:00:13.8]} 40... e3 {[%clk 0:00:31.3]} 41. Ke1 {[%clk 0:00:13.8]}
41... Ke4 {[%clk 0:00:31.7]} 42. Kf1 {[%clk 0:00:14.4]} 42... Kd3 {[%clk
0:00:31.6]} 43. Ke1 {[%clk 0:00:14.4]} 43... Kxc4 {[%clk 0:00:32.3]} 44. Ke2
{[%clk 0:00:13.9]} 44... Kd4 {[%clk 0:00:33.2]} 0-1

[Event "Late-Titled-Tuesday-Blitz-March-19-2024"]
[Site "Chess.com"]
[Date "2024.03.19"]
[Round "1"]
[White "Lukianoo"]
[Black "kleber2007"]
[Result "1-0"]
[WhiteElo "2836"]
[BlackElo "2492"]
[TimeControl "180+1"]
[EndTime "14:07:07 PDT"]
[Termination "Lukianoo won by checkmate"]

1. e4 {[%clk 0:03:00.9]} 1... e5 {[%clk 0:02:59]} 2. d4 {[%clk 0:02:59.7]} 2...
exd4 {[%clk 0:02:57.9]} 3. Qxd4 {[%clk 0:03:00.6]} 3... Nc6 {[%clk 0:02:58.2]}
4. Qe3 {[%clk 0:03:01.1]} 4... Nf6 {[%clk 0:02:58.6]} 5. Nc3 {[%clk 0:03:01.5]}
5... Bb4 {[%clk 0:02:58.2]} 6. Bd2 {[%clk 0:03:01.9]} 6... O-O {[%clk 0:02:58]}
7. O-O-O {[%clk 0:03:01.7]} 7... Re8 {[%clk 0:02:57.9]} 8. Bc4 {[%clk 0:03:02]}
8... d6 {[%clk 0:02:52.4]} 9. f3 {[%clk 0:03:00.9]} 9... Ne5 {[%clk 0:02:46.9]}
10. Bb3 {[%clk 0:03:00.1]} 10... Be6 {[%clk 0:02:42.7]} 11. Nge2 {[%clk
0:02:56.5]} 11... Nc4 {[%clk 0:02:34.1]} 12. Bxc4 {[%clk 0:02:56.1]} 12... Bxc4
{[%clk 0:02:35]} 13. Ng3 {[%clk 0:02:54]} 13... d5 {[%clk 0:02:19.1]} 14. Nf5
{[%clk 0:02:43.4]} 14... g6 {[%clk 0:02:01.5]} 15. Qg5 {[%clk 0:02:32.7]} 15...
Nh5 {[%clk 0:01:24.7]} 16. Qg4 {[%clk 0:02:13.5]} 16... d4 {[%clk 0:01:06.4]}
17. Bg5 {[%clk 0:01:48]} 17... Qc8 {[%clk 0:00:52]} 18. Rxd4 {[%clk 0:01:44.9]}
18... Bxc3 {[%clk 0:00:46.4]} 19. Rxc4 {[%clk 0:01:43.1]} 19... Bf6 {[%clk
0:00:45.9]} 20. Bxf6 {[%clk 0:01:32.5]} 20... Nxf6 {[%clk 0:00:45.7]} 21. Qg5
{[%clk 0:01:31]} 21... Qe6 {[%clk 0:00:37.4]} 22. Rxc7 {[%clk 0:01:28.3]} 22...
Rf8 {[%clk 0:00:21.6]} 23. Rd1 {[%clk 0:01:17.8]} 23... Qxa2 {[%clk 0:00:17.3]}
24. Ne7+ {[%clk 0:00:53]} 24... Kg7 {[%clk 0:00:16.5]} 25. Nf5+ {[%clk
0:00:52.1]} 25... Kg8 {[%clk 0:00:15.7]} 26. Qxf6 {[%clk 0:00:52.3]} 26... gxf5
{[%clk 0:00:15.1]} 27. Rd5 {[%clk 0:00:42.9]} 27... Qa1+ {[%clk 0:00:09.3]} 28.
Kd2 {[%clk 0:00:42.5]} 28... Qg1 {[%clk 0:00:04.6]} 29. Rxf5 {[%clk 0:00:22.2]}
29... Rfd8+ {[%clk 0:00:04.1]} 30. Rd5 {[%clk 0:00:17.4]} 30... Rxd5+ {[%clk
0:00:03.5]} 31. exd5 {[%clk 0:00:18.3]} 31... Qxg2+ {[%clk 0:00:03.8]} 32. Kc3
{[%clk 0:00:18.4]} 32... Qxh2 {[%clk 0:00:03.9]} 33. Qxf7+ {[%clk 0:00:17.5]}
33... Kh8 {[%clk 0:00:03.4]} 34. Qg7# {[%clk 0:00:17.1]} 1-0

[Event "Late-Titled-Tuesday-Blitz-March-19-2024"]
[Site "Chess.com"]
[Date "2024.03.19"]
[Round "1"]
[White "SergioMoralesG"]
[Black "Rud_2008"]
[Result "0-1"]
[WhiteElo "2479"]
[BlackElo "2808"]
[TimeControl "180+1"]
[EndTime "14:07:08 PDT"]
[Termination "Rud_2008 won by resignation"]

1. d4 {[%clk 0:02:59.6]} 1... Nf6 {[%clk 0:03:00]} 2. c4 {[%clk 0:02:59.5]} 2...
e6 {[%clk 0:03:00.1]} 3. Nf3 {[%clk 0:02:59.4]} 3... d5 {[%clk 0:03:00.3]} 4.
Nc3 {[%clk 0:02:59.5]} 4... Bb4 {[%clk 0:02:59.6]} 5. Bg5 {[%clk 0:02:59.1]}
5... h6 {[%clk 0:02:59.1]} 6. Bxf6 {[%clk 0:02:56.8]} 6... Qxf6 {[%clk 0:03:00]}
7. e3 {[%clk 0:02:57]} 7... O-O {[%clk 0:02:58.4]} 8. Qb3 {[%clk 0:02:56.8]}
8... c5 {[%clk 0:02:54.5]} 9. cxd5 {[%clk 0:02:56.5]} 9... exd5 {[%clk
0:02:54.6]} 10. dxc5 {[%clk 0:02:57]} 10... Bxc3+ {[%clk 0:02:54.4]} 11. Qxc3
{[%clk 0:02:55.4]} 11... Qxc3+ {[%clk 0:02:54.7]} 12. bxc3 {[%clk 0:02:56.3]}
12... Nd7 {[%clk 0:02:55.2]} 13. O-O-O {[%clk 0:02:45.1]} 13... Nf6 {[%clk
0:02:54.1]} 14. Nd4 {[%clk 0:02:34.2]} 14... Bd7 {[%clk 0:02:54]} 15. Bd3 {[%clk
0:02:21.5]} 15... Rac8 {[%clk 0:02:53]} 16. Nb3 {[%clk 0:02:21.4]} 16... Ba4
{[%clk 0:02:51.9]} 17. Kb2 {[%clk 0:02:15.7]} 17... Bxb3 {[%clk 0:02:49.6]} 18.
axb3 {[%clk 0:02:15.6]} 18... Rxc5 {[%clk 0:02:50.3]} 19. c4 {[%clk 0:01:45.3]}
19... dxc4 {[%clk 0:02:45.5]} 20. Bxc4 {[%clk 0:01:42.9]} 20... b5 {[%clk
0:02:43]} 21. Bd3 {[%clk 0:01:39.4]} 21... Nd5 {[%clk 0:02:28.9]} 22. Rc1 {[%clk
0:01:25]} 22... Nb4 {[%clk 0:02:28.2]} 23. Be2 {[%clk 0:01:20]} 23... Re5 {[%clk
0:01:58.5]} 24. Rc3 {[%clk 0:01:10.4]} 24... Rd8 {[%clk 0:01:53.5]} 25. Rd1
{[%clk 0:01:09.2]} 25... Rxd1 {[%clk 0:01:46.6]} 26. Bxd1 {[%clk 0:01:09.9]}
26... Rd5 {[%clk 0:01:47.3]} 27. Bc2 {[%clk 0:00:54.4]} 27... g6 {[%clk
0:01:46.5]} 28. Rc8+ {[%clk 0:00:42.5]} 28... Kg7 {[%clk 0:01:45.7]} 29. Be4
{[%clk 0:00:38]} 29... Rd1 {[%clk 0:01:38.2]} 30. Ra8 {[%clk 0:00:31.9]} 30...
Rd7 {[%clk 0:01:27.2]} 31. Kc3 {[%clk 0:00:27.5]} 31... Na2+ {[%clk 0:01:24.5]}
32. Kc2 {[%clk 0:00:21.1]} 32... f5 {[%clk 0:01:19.5]} 33. Bf3 {[%clk
0:00:19.1]} 33... Nb4+ {[%clk 0:01:19.8]} 34. Kc3 {[%clk 0:00:18.8]} 34... Nd3
{[%clk 0:01:20.2]} 35. Bc6 {[%clk 0:00:16.1]} 35... b4+ {[%clk 0:01:04.3]} 36.
Kc4 {[%clk 0:00:10.4]} 36... Ne5+ {[%clk 0:01:04.3]} 37. Kb5 {[%clk 0:00:10.6]}
37... Rd2 {[%clk 0:01:04.1]} 38. Rxa7+ {[%clk 0:00:10.2]} 38... Kf6 {[%clk
0:01:04.6]} 39. Be8 {[%clk 0:00:07.1]} 39... Rxf2 {[%clk 0:01:02.8]} 40. Kxb4
{[%clk 0:00:05.9]} 40... Rxg2 {[%clk 0:01:02.2]} 41. Kc3 {[%clk 0:00:06.2]}
41... Rxh2 {[%clk 0:01:02.3]} 42. b4 {[%clk 0:00:06.8]} 42... Re2 {[%clk
0:01:01]} 43. b5 {[%clk 0:00:06.2]} 43... Rxe3+ {[%clk 0:01:01.3]} 44. Kb4
{[%clk 0:00:06.8]} 44... Re4+ {[%clk 0:01:01.5]} 45. Ka5 {[%clk 0:00:07.1]}
45... Nc4+ {[%clk 0:01:01.4]} 46. Ka6 {[%clk 0:00:07.6]} 46... Rxe8 {[%clk
0:01:01.5]} 47. Rc7 {[%clk 0:00:07.1]} 47... Re6+ {[%clk 0:01:01.3]} 48. Ka7
{[%clk 0:00:06.5]} 48... Nb6 {[%clk 0:01:01.3]} 49. Rc6 {[%clk 0:00:06.9]} 49...
Rxc6 {[%clk 0:01:01.6]} 50. bxc6 {[%clk 0:00:07.8]} 50... Nd5 {[%clk 0:01:02.5]}
0-1

[Event "Late-Titled-Tuesday-Blitz-March-19-2024"]
[Site "Chess.com"]
[Date "2024.03.19"]
[Round "1"]
[White "nabukatnezarr"]
[Black "jefferyx"]
[Result "0-1"]
[WhiteElo "2560"]
[BlackElo "3096"]
[TimeControl "180+1"]
[EndTime "14:07:10 PDT"]
[Termination "jefferyx won on time"]

1. e4 {[%clk 0:02:51.4]} 1... c5 {[%clk 0:02:58.7]} 2. Nc3 {[%clk 0:02:48.7]}
2... a6 {[%clk 0:02:54.6]} 3. g3 {[%clk 0:02:44.9]} 3... g6 {[%clk 0:02:53.5]}
4. Bg2 {[%clk 0:02:44]} 4... Bg7 {[%clk 0:02:53.8]} 5. d3 {[%clk 0:02:38.1]}
5... Nc6 {[%clk 0:02:53.9]} 6. Be3 {[%clk 0:02:37.1]} 6... d6 {[%clk 0:02:53.3]}
7. Qd2 {[%clk 0:02:35.1]} 7... h5 {[%clk 0:02:50]} 8. h3 {[%clk 0:02:31.7]} 8...
Nf6 {[%clk 0:02:46.3]} 9. Nge2 {[%clk 0:02:30.7]} 9... Bd7 {[%clk 0:02:36.6]}
10. O-O {[%clk 0:02:22.7]} 10... b5 {[%clk 0:02:35.4]} 11. Rae1 {[%clk 0:02:12]}
11... b4 {[%clk 0:02:34.2]} 12. Nd1 {[%clk 0:02:12.1]} 12... Qc8 {[%clk
0:02:33.8]} 13. Kh2 {[%clk 0:02:11.6]} 13... a5 {[%clk 0:02:27.3]} 14. f4 {[%clk
0:02:06.6]} 14... a4 {[%clk 0:02:27.2]} 15. a3 {[%clk 0:02:03.9]} 15... Rb8
{[%clk 0:01:52.3]} 16. f5 {[%clk 0:01:38.6]} 16... gxf5 {[%clk 0:01:49.2]} 17.
exf5 {[%clk 0:01:39.5]} 17... Ne5 {[%clk 0:01:48.9]} 18. axb4 {[%clk 0:01:05.4]}
18... Rxb4 {[%clk 0:01:48.4]} 19. c3 {[%clk 0:01:02.8]} 19... Rb8 {[%clk
0:01:47.8]} 20. d4 {[%clk 0:00:58.4]} 20... Nc4 {[%clk 0:01:45.9]} 21. Qc1
{[%clk 0:00:58.9]} 21... Bxf5 {[%clk 0:01:40.3]} 22. dxc5 {[%clk 0:00:56.8]}
22... dxc5 {[%clk 0:01:21.9]} 23. Bg5 {[%clk 0:00:50.7]} 23... Kf8 {[%clk
0:01:08.8]} 24. Nf4 {[%clk 0:00:50.2]} 24... e6 {[%clk 0:01:03.8]} 25. Bf3
{[%clk 0:00:46.5]} 25... Ng4+ {[%clk 0:01:02.2]} 26. Kh1 {[%clk 0:00:33.7]}
26... Nge5 {[%clk 0:01:03.1]} 27. Bg2 {[%clk 0:00:34.1]} 27... a3 {[%clk
0:00:57.9]} 28. bxa3 {[%clk 0:00:33.8]} 28... Rb1 {[%clk 0:00:58.8]} 29. Nxe6+
{[%clk 0:00:27.3]} 29... Qxe6 {[%clk 0:00:59.7]} 30. Qf4 {[%clk 0:00:24.9]}
30... Bxh3 {[%clk 0:00:59.9]} 31. Qe4 {[%clk 0:00:16.5]} 31... Bxg2+ {[%clk
0:00:59.4]} 32. Qxg2 {[%clk 0:00:17.2]} 32... Qc6 {[%clk 0:00:50.1]} 33. Re4
{[%clk 0:00:17.2]} 33... Nd6 {[%clk 0:00:47.4]} 34. Ref4 {[%clk 0:00:06.1]}
34... Qxg2+ {[%clk 0:00:47.6]} 35. Kxg2 {[%clk 0:00:07]} 35... Ndc4 {[%clk
0:00:26.6]} 36. Kh3 {[%clk 0:00:05.9]} 36... Nd2 {[%clk 0:00:24.3]} 37. Re1
{[%clk 0:00:05.4]} 37... Ndf3 {[%clk 0:00:23.1]} 38. Rf1 {[%clk 0:00:02.5]}
38... Nxg5+ {[%clk 0:00:23.1]} 0-1

[Event "Late-Titled-Tuesday-Blitz-March-19-2024"]
[Site "Chess.com"]
[Date "2024.03.19"]
[Round "1"]
[White "MarcoRiehle"]
[Black "HandKnit"]
[Result "1/2-1/2"]
[WhiteElo "2782"]
[BlackElo "2475"]
[TimeControl "180+1"]
[EndTime "14:07:10 PDT"]
[Termination "Game drawn by repetition"]

1. e4 {[%clk 0:02:59.8]} 1... e5 {[%clk 0:02:59.6]} 2. Nf3 {[%clk 0:03:00]} 2...
Nc6 {[%clk 0:03:00.1]} 3. Bc4 {[%clk 0:03:00.4]} 3... Nf6 {[%clk 0:03:00.5]} 4.
d4 {[%clk 0:03:00.8]} 4... exd4 {[%clk 0:02:59.3]} 5. e5 {[%clk 0:02:58.8]} 5...
d5 {[%clk 0:02:59.3]} 6. Bb5 {[%clk 0:02:59.4]} 6... Nd7 {[%clk 0:02:58.8]} 7.
O-O {[%clk 0:02:58.9]} 7... Be7 {[%clk 0:02:53.5]} 8. Bxc6 {[%clk 0:02:56.8]}
8... bxc6 {[%clk 0:02:54.4]} 9. Nxd4 {[%clk 0:02:57.3]} 9... Nb8 {[%clk
0:02:52.1]} 10. c3 {[%clk 0:02:57.2]} 10... c5 {[%clk 0:02:40]} 11. Nb3 {[%clk
0:02:57]} 11... O-O {[%clk 0:02:35.8]} 12. Be3 {[%clk 0:02:56.8]} 12... c4
{[%clk 0:02:33.6]} 13. Nd4 {[%clk 0:02:51.5]} 13... c5 {[%clk 0:02:28]} 14. Ne2
{[%clk 0:02:51.7]} 14... Bb7 {[%clk 0:02:21.6]} 15. Nd2 {[%clk 0:02:48.9]} 15...
Qb6 {[%clk 0:02:14.9]} 16. Qc2 {[%clk 0:02:48.2]} 16... Nc6 {[%clk 0:02:08.4]}
17. Rad1 {[%clk 0:02:44.1]} 17... Rad8 {[%clk 0:02:08.1]} 18. b4 {[%clk
0:02:43.7]} 18... cxb3 {[%clk 0:02:03.3]} 19. Nxb3 {[%clk 0:02:42.1]} 19... Nxe5
{[%clk 0:01:47.5]} 20. Rb1 {[%clk 0:02:41.6]} 20... Qc7 {[%clk 0:01:37.9]} 21.
Nxc5 {[%clk 0:02:39.7]} 21... Bxc5 {[%clk 0:01:37.4]} 22. Bxc5 {[%clk
0:02:40.6]} 22... Qxc5 {[%clk 0:01:37.7]} 23. Rxb7 {[%clk 0:02:40.7]} 23... d4
{[%clk 0:01:32.6]} 24. Qe4 {[%clk 0:02:24.2]} 24... d3 {[%clk 0:01:29.5]} 25.
Nd4 {[%clk 0:02:23.4]} 25... Qxc3 {[%clk 0:01:24.9]} 26. Qxe5 {[%clk 0:02:14.3]}
26... Qxd4 {[%clk 0:01:23.4]} 27. Qxd4 {[%clk 0:02:14.1]} 27... Rxd4 {[%clk
0:01:24.3]} 28. Rd1 {[%clk 0:02:07]} 28... Rc8 {[%clk 0:01:20.8]} 29. Rxa7
{[%clk 0:02:00]} 29... d2 {[%clk 0:01:19.4]} 30. Kf1 {[%clk 0:01:59.8]} 30... g5
{[%clk 0:01:06.8]} 31. Re7 {[%clk 0:01:53.6]} 31... Rc2 {[%clk 0:01:04.5]} 32.
a3 {[%clk 0:01:54]} 32... Ra2 {[%clk 0:01:04.5]} 33. Re3 {[%clk 0:01:51.1]}
33... Kg7 {[%clk 0:01:03.9]} 34. Ke2 {[%clk 0:01:51.4]} 34... Kg6 {[%clk
0:01:00.8]} 35. Rd3 {[%clk 0:01:50]} 35... Rxd3 {[%clk 0:01:00.7]} 36. Kxd3
{[%clk 0:01:50.9]} 36... Rxa3+ {[%clk 0:01:01]} 37. Kxd2 {[%clk 0:01:51.6]}
37... Rb3 {[%clk 0:00:55.8]} 38. Ke2 {[%clk 0:01:51.4]} 38... h5 {[%clk
0:00:55.1]} 39. Rd6+ {[%clk 0:01:51.2]} 39... f6 {[%clk 0:00:55]} 40. Rd2 {[%clk
0:01:51.3]} 40... h4 {[%clk 0:00:55]} 41. Ra2 {[%clk 0:01:50.6]} 41... Kf5
{[%clk 0:00:54.9]} 42. h3 {[%clk 0:01:49.8]} 42... Kg6 {[%clk 0:00:54.9]} 43.
Rd2 {[%clk 0:01:47.6]} 43... Ra3 {[%clk 0:00:54.9]} 44. Rd3 {[%clk 0:01:47.8]}
44... Ra2+ {[%clk 0:00:53.4]} 45. Kf3 {[%clk 0:01:48.3]} 45... Ra1 {[%clk
0:00:53.6]} 46. Rb3 {[%clk 0:01:48.5]} 46... Rg1 {[%clk 0:00:52.3]} 47. g3
{[%clk 0:01:47.4]} 47... hxg3 {[%clk 0:00:49.7]} 48. fxg3 {[%clk 0:01:48.3]}
48... Rf1+ {[%clk 0:00:49.6]} 49. Kg2 {[%clk 0:01:48.8]} 49... Ra1 {[%clk
0:00:49.2]} 50. Rb2 {[%clk 0:01:49.3]} 50... Ra3 {[%clk 0:00:49.1]} 51. Rf2
{[%clk 0:01:49.7]} 51... Rb3 {[%clk 0:00:49.1]} 52. g4 {[%clk 0:01:44.8]} 52...
Ra3 {[%clk 0:00:46.1]} 53. Re2 {[%clk 0:01:45.3]} 53... Rb3 {[%clk 0:00:46.1]}
54. Rf2 {[%clk 0:01:45.8]} 54... Ra3 {[%clk 0:00:46.3]} 55. Rf3 {[%clk
0:01:46.5]} 55... Ra2+ {[%clk 0:00:46]} 56. Kg3 {[%clk 0:01:47.4]} 56... Ra4
{[%clk 0:00:45.6]} 57. h4 {[%clk 0:01:46.5]} 57... gxh4+ {[%clk 0:00:44.9]} 58.
Kxh4 {[%clk 0:01:47.4]} 58... Rb4 {[%clk 0:00:43.6]} 59. Kg3 {[%clk 0:01:47.9]}
59... Kg5 {[%clk 0:00:41.8]} 60. Rf5+ {[%clk 0:01:46]} 60... Kg6 {[%clk
0:00:42]} 61. Rf3 {[%clk 0:01:46.4]} 61... Kg5 {[%clk 0:00:41.6]} 62. Rf5+
{[%clk 0:01:46.9]} 62... Kg6 {[%clk 0:00:42]} 63. Ra5 {[%clk 0:01:47.8]} 63...
Rb3+ {[%clk 0:00:40]} 64. Kh4 {[%clk 0:01:48.4]} 64... Rb4 {[%clk 0:00:36.7]}
65. Ra6 {[%clk 0:01:47.3]} 65... Rc4 {[%clk 0:00:35.5]} 66. Kg3 {[%clk
0:01:47.3]} 66... Kg5 {[%clk 0:00:34.8]} 67. Ra5+ {[%clk 0:01:47.8]} 67... Kg6
{[%clk 0:00:35.1]} 68. Rb5 {[%clk 0:01:48.4]} 68... Ra4 {[%clk 0:00:34.6]} 69.
Kh4 {[%clk 0:01:47.9]} 69... Rc4 {[%clk 0:00:33.9]} 70. Rh5 {[%clk 0:01:45.5]}
70... Ra4 {[%clk 0:00:32.4]} 71. Rh8 {[%clk 0:01:45]} 71... Rb4 {[%clk
0:00:31.7]} 72. Rg8+ {[%clk 0:01:45.3]} 72... Kf7 {[%clk 0:00:31.8]} 73. Rc8
{[%clk 0:01:45.2]} 73... Kg6 {[%clk 0:00:32.1]} 74. Rf8 {[%clk 0:01:44.7]} 74...
Ra4 {[%clk 0:00:30.6]} 75. Rg8+ {[%clk 0:01:44.4]} 75... Kf7 {[%clk 0:00:30.2]}
76. Rh8 {[%clk 0:01:42.5]} 76... Kg6 {[%clk 0:00:30.4]} 77. Re8 {[%clk
0:01:42.8]} 77... Kf7 {[%clk 0:00:30.2]} 78. Re3 {[%clk 0:01:43.1]} 78... Kg6
{[%clk 0:00:30.5]} 79. Rf3 {[%clk 0:01:43.8]} 79... Rb4 {[%clk 0:00:30.2]} 80.
Kg3 {[%clk 0:01:44.5]} 1/2-1/2

[Event "Late-Titled-Tuesday-Blitz-March-19-2024"]
[Site "Chess.com"]
[Date "2024.03.19"]
[Round "1"]
[White "Rakitic2010"]
[Black "stregachess"]
[Result "1-0"]
[WhiteElo "2581"]
[BlackElo "1998"]
[TimeControl "180+1"]
[EndTime "14:07:11 PDT"]
[Termination "Rakitic2010 won on time"]

1. d4 {[%clk 0:03:00.9]} 1... Nf6 {[%clk 0:02:58.6]} 2. e3 {[%clk 0:02:58.3]}
2... d5 {[%clk 0:02:54.8]} 3. Bd3 {[%clk 0:02:57.7]} 3... e6 {[%clk 0:02:54.6]}
4. Nd2 {[%clk 0:02:56.1]} 4... Be7 {[%clk 0:02:52.8]} 5. f4 {[%clk 0:02:54.4]}
5... O-O {[%clk 0:02:52.3]} 6. Ngf3 {[%clk 0:02:51]} 6... c5 {[%clk 0:02:50.1]}
7. c3 {[%clk 0:02:50.7]} 7... Nc6 {[%clk 0:02:46.8]} 8. O-O {[%clk 0:02:49.6]}
8... Rb8 {[%clk 0:02:39.8]} 9. Ne5 {[%clk 0:02:43.8]} 9... Qc7 {[%clk
0:02:34.6]} 10. Qf3 {[%clk 0:02:38.2]} 10... c4 {[%clk 0:02:20.2]} 11. Bc2
{[%clk 0:02:36.9]} 11... b5 {[%clk 0:02:20.9]} 12. g4 {[%clk 0:02:36.6]} 12...
Nd7 {[%clk 0:02:01.9]} 13. Qh3 {[%clk 0:02:17.9]} 13... g6 {[%clk 0:01:42.9]}
14. Qh6 {[%clk 0:01:57.3]} 14... Ndxe5 {[%clk 0:01:17.3]} 15. fxe5 {[%clk
0:01:54.4]} 15... f5 {[%clk 0:00:51.4]} 16. gxf5 {[%clk 0:01:49.9]} 16... exf5
{[%clk 0:00:49.8]} 17. Nf3 {[%clk 0:01:43.2]} 17... Be6 {[%clk 0:00:36]} 18. Ng5
{[%clk 0:01:41.7]} 18... Bxg5 {[%clk 0:00:32.8]} 19. Qxg5 {[%clk 0:01:41.6]}
19... Qe7 {[%clk 0:00:32.8]} 20. Qxe7 {[%clk 0:01:33.2]} 20... Nxe7 {[%clk
0:00:32.4]} 21. Bd2 {[%clk 0:01:31.9]} 21... a5 {[%clk 0:00:29.2]} 22. Be1
{[%clk 0:01:31]} 22... Kg7 {[%clk 0:00:27.3]} 23. Bh4 {[%clk 0:01:30.6]} 23...
Ng8 {[%clk 0:00:27.4]} 24. Rf3 {[%clk 0:01:18.6]} 24... Rf7 {[%clk 0:00:20.2]}
25. Raf1 {[%clk 0:01:15.1]} 25... Rbf8 {[%clk 0:00:20.2]} 26. Be1 {[%clk
0:01:14.1]} 26... h6 {[%clk 0:00:18.9]} 27. h4 {[%clk 0:01:14]} 27... Ne7 {[%clk
0:00:17.4]} 28. a4 {[%clk 0:01:12.3]} 28... Rb8 {[%clk 0:00:15.9]} 29. R1f2
{[%clk 0:01:05.4]} 29... Rb7 {[%clk 0:00:13.4]} 30. Rg2 {[%clk 0:01:04.7]} 30...
Kh7 {[%clk 0:00:12.6]} 31. Bd1 {[%clk 0:01:01.8]} 31... b4 {[%clk 0:00:12.7]}
32. Rfg3 {[%clk 0:00:55.7]} 32... Rg7 {[%clk 0:00:11.2]} 33. Bh5 {[%clk
0:00:50.1]} 33... Bf7 {[%clk 0:00:09.4]} 34. Bd1 {[%clk 0:00:49.6]} 34... bxc3
{[%clk 0:00:08.6]} 35. Bxc3 {[%clk 0:00:47.7]} 35... Nc6 {[%clk 0:00:07.3]} 36.
Bf3 {[%clk 0:00:47]} 36... Be6 {[%clk 0:00:06.9]} 37. Kh2 {[%clk 0:00:41.9]}
37... Nb4 {[%clk 0:00:06.8]} 38. Be2 {[%clk 0:00:39]} 38... Nd3 {[%clk
0:00:05.9]} 39. Bxd3 {[%clk 0:00:38]} 39... cxd3 {[%clk 0:00:06.2]} 40. Rd2
{[%clk 0:00:38.3]} 40... Rgc7 {[%clk 0:00:03]} 41. Rxd3 {[%clk 0:00:38]} 41...
Bf7 {[%clk 0:00:02.7]} 42. Rd2 {[%clk 0:00:37.5]} 42... Rc4 {[%clk 0:00:02.8]}
43. Rdg2 {[%clk 0:00:34.8]} 43... Rxa4 {[%clk 0:00:01.8]} 44. e6 {[%clk
0:00:33.5]} 1-0

[Event "Late-Titled-Tuesday-Blitz-March-19-2024"]
[Site "Chess.com"]
[Date "2024.03.19"]
[Round "1"]
[White "SultaiC"]
[Black "I-Mesquita"]
[Result "1-0"]
[WhiteElo "2455"]
[BlackElo "2715"]
[TimeControl "180+1"]
[EndTime "14:07:14 PDT"]
[Termination "SultaiC won on time"]

1. e4 {[%clk 0:02:59.5]} 1... e5 {[%clk 0:02:59.2]} 2. Nf3 {[%clk 0:02:59.6]}
2... Nc6 {[%clk 0:02:59.1]} 3. Bb5 {[%clk 0:02:59.3]} 3... Nf6 {[%clk
0:02:58.5]} 4. d3 {[%clk 0:02:57.7]} 4... Bd6 {[%clk 0:02:57.7]} 5. O-O {[%clk
0:02:57.9]} 5... O-O {[%clk 0:02:57.6]} 6. h3 {[%clk 0:02:58]} 6... Re8 {[%clk
0:02:57.4]} 7. Bg5 {[%clk 0:02:55.4]} 7... h6 {[%clk 0:02:53.9]} 8. Bh4 {[%clk
0:02:55.2]} 8... Bf8 {[%clk 0:02:54.3]} 9. Nc3 {[%clk 0:02:53.6]} 9... d6 {[%clk
0:02:47.9]} 10. Nd5 {[%clk 0:02:52]} 10... Be7 {[%clk 0:02:29.1]} 11. d4 {[%clk
0:02:51.1]} 11... exd4 {[%clk 0:01:45.8]} 12. Nxd4 {[%clk 0:02:33.5]} 12... Bd7
{[%clk 0:01:37.1]} 13. Bxf6 {[%clk 0:02:26.3]} 13... Bxf6 {[%clk 0:01:36.6]} 14.
Nf3 {[%clk 0:02:17]} 14... Bxb2 {[%clk 0:01:28.9]} 15. Rb1 {[%clk 0:01:56.3]}
15... Bf6 {[%clk 0:01:29.1]} 16. Bc4 {[%clk 0:01:47.3]} 16... Na5 {[%clk
0:01:22.7]} 17. Bd3 {[%clk 0:01:43.9]} 17... c6 {[%clk 0:01:18.6]} 18. Ne3
{[%clk 0:01:42.9]} 18... Be6 {[%clk 0:01:12.1]} 19. c4 {[%clk 0:01:40.4]} 19...
a6 {[%clk 0:01:06.3]} 20. Qc2 {[%clk 0:01:40.5]} 20... b5 {[%clk 0:01:03.8]} 21.
c5 {[%clk 0:01:37.5]} 21... dxc5 {[%clk 0:00:57.3]} 22. e5 {[%clk 0:01:36.3]}
22... Be7 {[%clk 0:00:48.5]} 23. Rfd1 {[%clk 0:01:36.3]} 23... Qc7 {[%clk
0:00:43.8]} 24. Bf5 {[%clk 0:01:36.3]} 24... Bf8 {[%clk 0:00:38.8]} 25. Qe4
{[%clk 0:00:44.9]} 25... Rad8 {[%clk 0:00:32.1]} 26. h4 {[%clk 0:00:38]} 26...
Rxd1+ {[%clk 0:00:30.6]} 27. Rxd1 {[%clk 0:00:37.3]} 27... Rd8 {[%clk
0:00:29.4]} 28. Re1 {[%clk 0:00:35.8]} 28... c4 {[%clk 0:00:22.2]} 29. Ng4
{[%clk 0:00:32.6]} 29... Nb7 {[%clk 0:00:19.6]} 30. Bxe6 {[%clk 0:00:31.9]}
30... fxe6 {[%clk 0:00:19]} 31. Qg6 {[%clk 0:00:32.2]} 31... Kh8 {[%clk
0:00:15.6]} 32. Re3 {[%clk 0:00:27.7]} 32... Nc5 {[%clk 0:00:09.2]} 33. Ng5
{[%clk 0:00:27.8]} 33... hxg5 {[%clk 0:00:07.5]} 34. hxg5 {[%clk 0:00:28.4]}
34... Rd1+ {[%clk 0:00:04.4]} 35. Kh2 {[%clk 0:00:27.7]} 35... Kg8 {[%clk
0:00:03.4]} 36. Nf6+ {[%clk 0:00:27.3]} 1-0